[Event "MČR družstev mladších žáků 2024"]
[Site "Harrachov, Czech Republic"]
[Date "2024.06.15"]
[Round "6.7"]
[White "Vancakova Veronika"]
[Black "Frantsev Iegor"]
[Result "0-1"]
[TimeControl "25+10"]
[WhiteFideId "23731907"]
[BlackFideId "23736305"]
[WhiteElo "1437"]
[BlackElo "1413"]

1. d4 {[%clk 00:25:18]} d5 {[%clk 00:25:19]} {[%emt 00:00:01]} 2. c4 {[%clk
00:25:26]} {[%emt 00:00:01]} c6 {[%clk 00:25:28]} {[%emt 00:00:01]} 3. Nc3
{[%clk 00:25:34]} {[%emt 00:00:02]} Nf6 {[%clk 00:25:36]} {[%emt 00:00:02]} 4.
Bg5 {[%clk 00:25:40]} {[%emt 00:00:04]} Ne4 {[%clk 00:25:44]} {[%emt 00:00:02]}
5. Nxe4 {[%clk 00:24:54]} {[%emt 00:00:57]} dxe4 {[%clk 00:25:52]} {[%emt
00:00:02]} 6. e3 {[%clk 00:24:27]} {[%emt 00:00:37]} Qa5+ {[%clk 00:26:01]}
{[%emt 00:00:02]} 7. Qd2 {[%clk 00:24:21]} {[%emt 00:00:15]} Qxg5 {[%clk
00:26:09]} {[%emt 00:00:02]} 8. d5 {[%clk 00:24:21]} {[%emt 00:00:10]} e6
{[%clk 00:24:37]} {[%emt 00:01:41]} 9. d6 {[%clk 00:23:54]} {[%emt 00:00:37]}
Nd7 {[%clk 00:23:31]} {[%emt 00:01:16]} 10. Nh3 {[%clk 00:22:20]} {[%emt
00:01:45]} Qe5 {[%clk 00:22:27]} {[%emt 00:01:14]} 11. Rd1 {[%clk 00:21:17]}
{[%emt 00:01:12]} g6 {[%clk 00:21:49]} {[%emt 00:00:48]} 12. Be2 {[%clk
00:17:48]} {[%emt 00:03:40]} Bg7 {[%clk 00:21:45]} {[%emt 00:00:14]} 13. Rb1
{[%clk 00:17:49]} {[%emt 00:00:09]} O-O {[%clk 00:21:20]} {[%emt 00:00:35]} 14.
O-O {[%clk 00:17:49]} {[%emt 00:00:11]} c5 {[%clk 00:19:28]} {[%emt 00:02:03]}
15. f3 {[%clk 00:17:23]} {[%emt 00:00:36]} exf3 {[%clk 00:18:24]} {[%emt
00:01:13]} 16. gxf3 {[%clk 00:17:29]} {[%emt 00:00:04]} Qf5 {[%clk 00:17:30]}
{[%emt 00:01:04]} 17. Nf2 {[%clk 00:16:51]} {[%emt 00:00:48]} b6 {[%clk
00:16:13]} {[%emt 00:01:27]} 18. Ng4 {[%clk 00:15:06]} {[%emt 00:01:55]} h5
{[%clk 00:14:36]} {[%emt 00:01:46]} 19. e4 {[%clk 00:15:11]} {[%emt 00:00:06]}
Bd4+ {[%clk 00:13:58]} {[%emt 00:00:48]} 20. Kh1 {[%clk 00:13:15]} {[%emt
00:02:05]} hxg4 {[%clk 00:13:42]} {[%emt 00:00:27]} 21. exf5 {[%clk 00:13:23]}
{[%emt 00:00:02]} Bb7 {[%clk 00:13:50]} {[%emt 00:00:02]} 22. f6 {[%clk
00:08:53]} {[%emt 00:04:40]} Kh7 {[%clk 00:11:53]} {[%emt 00:02:07]} 23. Qg5
{[%clk 00:01:37]} {[%emt 00:07:26]} Rh8 {[%clk 00:11:15]} {[%emt 00:00:48]} 24.
Qxg4 {[%clk 00:01:03]} {[%emt 00:00:44]} Bxf6 {[%clk 00:10:25]} {[%emt
00:01:00]} 25. Rf2 {[%clk 00:00:23]} {[%emt 00:00:51]} Kg7 {[%clk 00:09:37]}
{[%emt 00:00:58]} 26. Qf4 {[%clk 00:00:20]} {[%emt 00:00:13]} Rh4 {[%clk
00:09:20]} {[%emt 00:00:27]} 27. Qe3 {[%clk 00:00:19]} {[%emt 00:00:11]} Bd4
{[%clk 00:09:13]} {[%emt 00:00:17]} 28. Qg5 {[%clk 00:00:19]} {[%emt 00:00:10]}
Bxf2 {[%clk 00:09:19]} {[%emt 00:00:05]} 29. Rf1 {[%clk 00:00:28]} {[%emt
00:00:02]} f6 {[%clk 00:08:47]} {[%emt 00:00:42]} 30. Qg2 {[%clk 00:00:18]}
{[%emt 00:00:19]} Bd4 {[%clk 00:08:14]} {[%emt 00:00:43]} 31. Qg3 {[%clk
00:00:14]} {[%emt 00:00:14]} Rah8 {[%clk 00:07:52]} {[%emt 00:00:31]} 32. Bd3
{[%clk 00:00:15]} {[%emt 00:00:09]} g5 {[%clk 00:07:25]} {[%emt 00:00:36]} 33.
Qg2 {[%clk 00:00:13]} {[%emt 00:00:12]} Be5 {[%clk 00:07:30]} {[%emt 00:00:05]}
34. Rf2 {[%clk 00:00:22]} {[%emt 00:00:02]} Rxh2+ {[%clk 00:07:36]} {[%emt
00:00:04]} 35. Qxh2 {[%clk 00:00:31]} Rxh2+ {[%clk 00:07:34]} {[%emt 00:00:12]}
36. Rxh2 {[%clk 00:00:40]} {[%emt 00:00:01]} Bxf3+ {[%clk 00:07:35]} {[%emt
00:00:09]} 37. Kg1 {[%clk 00:00:49]} Bxh2+ {[%clk 00:07:34]} {[%emt 00:00:11]}
38. Kxh2 {[%clk 00:00:57]} {[%emt 00:00:02]} f5 {[%clk 00:07:31]} {[%emt
00:00:13]} 39. Bc2 {[%clk 00:01:03]} {[%emt 00:00:03]} Kf6 {[%clk 00:07:39]}
{[%emt 00:00:02]} 40. Ba4 {[%clk 00:01:10]} {[%emt 00:00:03]} Ne5 {[%clk
00:07:26]} {[%emt 00:00:22]} 41. Bb5 {[%clk 00:01:08]} {[%emt 00:00:14]} Bc6
{[%clk 00:07:25]} {[%emt 00:00:11]} 42. Ba6 {[%clk 00:01:16]} {[%emt 00:00:02]}
Ng4+ {[%clk 00:07:07]} {[%emt 00:00:28]} 43. Kg3 {[%clk 00:01:22]} {[%emt
00:00:04]} Ke5 {[%clk 00:07:13]} {[%emt 00:00:03]} 0-1



[ePGN "0.1;DGT LiveChess/2.2.6"]

[Event "MČR družstev mladších žáků 2024"]
[Site "Harrachov, Czech Republic"]
[Date "2024.06.15"]
[Round "6.8"]
[White "Mauric Jan"]
[Black "Walder Hugo"]
[Result "1-0"]
[TimeControl "25+10"]
[WhiteFideId "23744200"]
[BlackFideId "23743360"]
[WhiteElo "1306"]
[BlackElo "1489"]

1. d4 {[%clk 00:25:17]} {[%emt 00:00:03]} d5 {[%clk 00:25:19]} {[%emt
00:00:01]} 2. Bf4 {[%clk 00:25:25]} {[%emt 00:00:02]} Bf5 {[%clk 00:25:26]}
{[%emt 00:00:03]} 3. e3 {[%clk 00:25:31]} {[%emt 00:00:04]} e6 {[%clk
00:25:35]} {[%emt 00:00:01]} 4. Nf3 {[%clk 00:25:22]} {[%emt 00:00:19]} Nf6
{[%clk 00:25:42]} {[%emt 00:00:03]} 5. a3 {[%clk 00:25:21]} {[%emt 00:00:11]}
a6 {[%clk 00:25:22]} {[%emt 00:00:29]} 6. Bd3 {[%clk 00:24:55]} {[%emt
00:00:36]} Bg6 {[%clk 00:25:28]} {[%emt 00:00:03]} 7. O-O {[%clk 00:24:36]}
{[%emt 00:00:29]} Bd6 {[%clk 00:25:34]} {[%emt 00:00:04]} 8. Bg5 {[%clk
00:24:26]} {[%emt 00:00:21]} Be7 {[%clk 00:25:35]} {[%emt 00:00:09]} 9. Qe2
{[%clk 00:22:41]} {[%emt 00:01:54]} c5 {[%clk 00:24:46]} {[%emt 00:00:59]} 10.
c4 {[%clk 00:21:28]} {[%emt 00:01:23]} Nc6 {[%clk 00:24:33]} {[%emt 00:00:21]}
11. cxd5 {[%clk 00:18:25]} {[%emt 00:03:15]} Nxd5 {[%clk 00:24:19]} {[%emt
00:00:23]} 12. Bxe7 {[%clk 00:18:24]} {[%emt 00:00:12]} Qxe7 {[%clk 00:23:44]}
{[%emt 00:00:45]} 13. dxc5 {[%clk 00:16:22]} {[%emt 00:02:13]} Qxc5 {[%clk
00:23:36]} {[%emt 00:00:18]} 14. Nbd2 {[%clk 00:16:14]} {[%emt 00:00:18]} O-O
{[%clk 00:22:54]} {[%emt 00:00:51]} 15. Bxg6 {[%clk 00:15:34]} {[%emt
00:00:51]} hxg6 {[%clk 00:22:31]} {[%emt 00:00:34]} 16. Rac1 {[%clk 00:14:57]}
{[%emt 00:00:46]} Qe7 {[%clk 00:22:33]} {[%emt 00:00:03]} 17. Qc4 {[%clk
00:13:01]} {[%emt 00:02:11]} Rac8 {[%clk 00:20:18]} {[%emt 00:02:24]} 18. Qe4
{[%clk 00:10:59]} {[%emt 00:02:14]} Nf6 {[%clk 00:18:27]} {[%emt 00:02:00]} 19.
Qh4 {[%clk 00:09:49]} {[%emt 00:01:19]} Nd5 {[%clk 00:17:22]} {[%emt 00:01:15]}
20. Qxe7 {[%clk 00:09:51]} {[%emt 00:00:09]} Ncxe7 {[%clk 00:17:27]} {[%emt
00:00:05]} 21. Nb3 {[%clk 00:09:14]} {[%emt 00:00:47]} Rfd8 {[%clk 00:16:12]}
{[%emt 00:01:07]} 22. Rfd1 {[%clk 00:08:22]} {[%emt 00:01:20]} Nc6 {[%clk
00:12:17]} {[%emt 00:03:58]} 23. g3 {[%clk 00:08:04]} {[%emt 00:00:36]} Kf8
{[%clk 00:09:25]} {[%emt 00:03:00]} 24. Nc5 {[%clk 00:05:02]} {[%emt 00:03:14]}
Rb8 {[%clk 00:07:23]} {[%emt 00:02:12]} 25. Nxa6 {[%clk 00:04:21]} {[%emt
00:00:51]} Nd4 {[%clk 00:05:33]} {[%emt 00:02:00]} 26. Nxd4 {[%clk 00:03:59]}
{[%emt 00:00:32]} bxa6 {[%clk 00:05:07]} {[%emt 00:00:36]} 27. Nc6 {[%clk
00:04:06]} {[%emt 00:00:03]} Rdc8 {[%clk 00:04:57]} {[%emt 00:00:18]} 28. Nxb8
{[%clk 00:04:05]} {[%emt 00:00:13]} Rxb8 {[%clk 00:05:05]} {[%emt 00:00:01]} 29.
b4 {[%clk 00:04:02]} {[%emt 00:00:14]} Rb5 {[%clk 00:04:49]} {[%emt 00:00:26]}
30. Rc8+ {[%clk 00:03:46]} {[%emt 00:00:26]} Ke7 {[%clk 00:04:55]} {[%emt
00:00:03]} 31. Ra8 {[%clk 00:03:53]} {[%emt 00:00:03]} Rb6 {[%clk 00:04:58]}
{[%emt 00:00:08]} 32. Rc1 {[%clk 00:03:10]} {[%emt 00:00:53]} Kf6 {[%clk
00:04:55]} {[%emt 00:00:13]} 33. Rc5 {[%clk 00:02:54]} {[%emt 00:00:27]} g5
{[%clk 00:03:45]} {[%emt 00:01:19]} 34. e4 {[%clk 00:02:03]} {[%emt 00:01:02]}
Ne7 {[%clk 00:03:39]} {[%emt 00:00:14]} 35. Ra5 {[%clk 00:01:34]} {[%emt
00:00:41]} Rc6 {[%clk 00:03:37]} {[%emt 00:00:11]} 36. R5xa6 {[%clk 00:01:24]}
{[%emt 00:00:21]} Rc2 {[%clk 00:03:43]} {[%emt 00:00:04]} 37. Ra5 {[%clk
00:01:20]} {[%emt 00:00:14]} Ng6 {[%clk 00:03:25]} {[%emt 00:00:28]} 38. Rc5
{[%clk 00:01:05]} {[%emt 00:00:26]} Re2 {[%clk 00:03:29]} {[%emt 00:00:05]} 39.
Raa5 {[%clk 00:01:06]} {[%emt 00:00:09]} Rxe4 {[%clk 00:03:09]} {[%emt
00:00:30]} 40. Rc1 {[%clk 00:00:57]} {[%emt 00:00:20]} Ne5 {[%clk 00:03:10]}
{[%emt 00:00:09]} 41. Kg2 {[%clk 00:00:39]} {[%emt 00:00:29]} g4 {[%clk
00:03:10]} {[%emt 00:00:09]} 42. Kf1 {[%clk 00:00:41]} {[%emt 00:00:08]} Nf3
{[%clk 00:03:12]} {[%emt 00:00:08]} 43. Rac5 {[%clk 00:00:25]} {[%emt
00:00:26]} Nxh2+ {[%clk 00:02:54]} {[%emt 00:00:28]} 44. Kg2 {[%clk 00:00:34]}
{[%emt 00:00:01]} Nf3 {[%clk 00:03:01]} {[%emt 00:00:03]} 45. R5c4 {[%clk
00:00:31]} {[%emt 00:00:13]} Re5 {[%clk 00:03:09]} {[%emt 00:00:01]} 46. Rxg4
{[%clk 00:00:31]} {[%emt 00:00:11]} Ne1+ {[%clk 00:03:11]} {[%emt 00:00:08]} 47.
Kf1 {[%clk 00:00:32]} {[%emt 00:00:09]} Nd3 {[%clk 00:03:18]} {[%emt 00:00:02]}
48. Ra1 {[%clk 00:00:37]} {[%emt 00:00:06]} Rh5 {[%clk 00:03:18]} {[%emt
00:00:10]} 49. Rh4 {[%clk 00:00:42]} {[%emt 00:00:06]} Rf5 {[%clk 00:03:26]}
{[%emt 00:00:02]} 50. Ke2 {[%clk 00:00:25]} {[%emt 00:00:27]} Nxf2 {[%clk
00:03:18]} {[%emt 00:00:17]} 51. Rf4 {[%clk 00:00:32]} {[%emt 00:00:04]} Rxf4
{[%clk 00:03:03]} {[%emt 00:00:24]} 52. gxf4 {[%clk 00:00:41]} {[%emt
00:00:02]} Nh3 {[%clk 00:03:11]} {[%emt 00:00:02]} 53. Kf3 {[%clk 00:00:45]}
{[%emt 00:00:06]} Kf5 {[%clk 00:03:20]} 54. a4 {[%clk 00:00:54]} {[%emt
00:00:01]} Nxf4 {[%clk 00:03:27]} {[%emt 00:00:02]} 55. a5 {[%clk 00:01:03]}
{[%emt 00:00:01]} Nd5 {[%clk 00:03:36]} {[%emt 00:00:01]} 56. a6 {[%clk
00:01:05]} {[%emt 00:00:09]} g5 {[%clk 00:03:33]} {[%emt 00:00:13]} 57. a7
{[%clk 00:01:13]} {[%emt 00:00:02]} Nb6 {[%clk 00:03:42]} 58. a8=Q {[%clk
00:01:17]} {[%emt 00:00:06]} Nxa8 {[%clk 00:03:50]} {[%emt 00:00:02]} 59. Rxa8
{[%clk 00:01:25]} {[%emt 00:00:01]} g4+ {[%clk 00:03:58]} {[%emt 00:00:02]} 60.
Kf2 {[%clk 00:01:31]} {[%emt 00:00:04]} Kf4 {[%clk 00:04:05]} {[%emt 00:00:02]}
61. Rg8 {[%clk 00:01:40]} {[%emt 00:00:01]} f5 {[%clk 00:04:14]} {[%emt
00:00:02]} 62. b5 {[%clk 00:01:47]} {[%emt 00:00:03]} e5 {[%clk 00:04:18]}
{[%emt 00:00:05]} 63. b6 {[%clk 00:01:49]} {[%emt 00:00:09]} e4 {[%clk
00:04:25]} {[%emt 00:00:02]} 64. b7 {[%clk 00:01:56]} {[%emt 00:00:02]} e3+
{[%clk 00:04:34]} {[%emt 00:00:01]} 65. Ke2 {[%clk 00:02:04]} {[%emt 00:00:02]}
g3 {[%clk 00:04:43]} 66. b8=Q+ {[%emt 00:00:08]} 1-0



[ePGN "0.1;DGT LiveChess/2.2.6"]

[Event "MČR družstev mladších žáků 2024"]
[Site "Harrachov, Czech Republic"]
[Date "2024.06.15"]
[Round "6.9"]
[White "Bucek Vit"]
[Black "Hujova Tess"]
[Result "1/2-1/2"]
[TimeControl "25+10"]
[WhiteFideId "23750812"]
[BlackFideId "23744936"]
[WhiteElo "1582"]
[BlackElo "1311"]

1. e4 {[%clk 00:25:19]} {[%emt 00:04:59]} e6 {[%clk 00:25:18]} {[%emt
00:00:02]} 2. d4 {[%clk 00:25:28]} {[%emt 00:00:01]} b6 {[%clk 00:25:26]}
{[%emt 00:00:02]} 3. Nc3 {[%clk 00:25:29]} {[%emt 00:00:08]} Bb7 {[%clk
00:25:35]} {[%emt 00:00:01]} 4. Bc4 {[%clk 00:25:30]} {[%emt 00:00:09]} Bb4
{[%clk 00:25:34]} {[%emt 00:00:11]} 5. Nge2 {[%clk 00:25:29]} {[%emt 00:00:10]}
Bxe4 {[%clk 00:25:31]} {[%emt 00:00:14]} 6. Bd2 {[%clk 00:25:34]} {[%emt
00:00:05]} Bb7 {[%clk 00:25:31]} {[%emt 00:00:09]} 7. O-O {[%clk 00:25:39]}
{[%emt 00:00:06]} Nf6 {[%clk 00:25:13]} {[%emt 00:00:28]} 8. Bg5 {[%clk
00:25:37]} {[%emt 00:00:13]} h6 {[%clk 00:25:11]} {[%emt 00:00:11]} 9. Bh4
{[%clk 00:25:45]} {[%emt 00:00:02]} O-O {[%clk 00:25:12]} {[%emt 00:00:09]} 10.
Ne4 {[%clk 00:25:51]} {[%emt 00:00:04]} Bxe4 {[%clk 00:25:17]} {[%emt
00:00:05]} 11. c3 {[%clk 00:25:57]} {[%emt 00:00:04]} Be7 {[%clk 00:25:20]}
{[%emt 00:00:06]} 12. f3 {[%clk 00:25:00]} {[%emt 00:01:08]} Bb7 {[%clk
00:25:21]} {[%emt 00:00:09]} 13. Bf2 {[%clk 00:24:31]} {[%emt 00:00:39]} d6
{[%clk 00:25:08]} {[%emt 00:00:24]} 14. Bd3 {[%clk 00:24:23]} {[%emt 00:00:18]}
Nbd7 {[%clk 00:24:50]} {[%emt 00:00:27]} 15. Be3 {[%clk 00:24:11]} {[%emt
00:00:22]} e5 {[%clk 00:24:39]} {[%emt 00:00:22]} 16. dxe5 {[%clk 00:23:43]}
{[%emt 00:00:38]} Nxe5 {[%clk 00:24:36]} {[%emt 00:00:12]} 17. Bc2 {[%clk
00:23:31]} {[%emt 00:00:22]} Nc4 {[%clk 00:23:37]} {[%emt 00:01:09]} 18. Bf2
{[%clk 00:23:23]} {[%emt 00:00:18]} Nd5 {[%clk 00:22:33]} {[%emt 00:01:14]} 19.
Qd3 {[%clk 00:23:27]} {[%emt 00:00:04]} g6 {[%clk 00:21:44]} {[%emt 00:01:01]}
20. Qxc4 {[%clk 00:23:30]} {[%emt 00:00:08]} Kh7 {[%clk 00:21:00]} {[%emt
00:00:54]} 21. Be4 {[%clk 00:23:22]} {[%emt 00:00:11]} c6 {[%clk 00:20:59]}
{[%emt 00:00:17]} 22. Bxd5 {[%clk 00:23:09]} {[%emt 00:00:24]} cxd5 {[%clk
00:21:07]} {[%emt 00:00:02]} 23. Qd3 {[%clk 00:23:14]} {[%emt 00:00:03]} Qc7
{[%clk 00:20:07]} {[%emt 00:01:11]} 24. Nf4 {[%clk 00:23:11]} {[%emt 00:00:11]}
Qc4 {[%clk 00:19:50]} {[%emt 00:00:29]} 25. Qd2 {[%clk 00:22:48]} {[%emt
00:00:32]} Bg5 {[%clk 00:19:29]} {[%emt 00:00:34]} 26. Be3 {[%clk 00:22:45]}
{[%emt 00:00:13]} Rae8 {[%clk 00:19:07]} {[%emt 00:00:31]} 27. Rfd1 {[%clk
00:21:46]} {[%emt 00:01:06]} Bxf4 {[%clk 00:18:16]} {[%emt 00:01:05]} 28. Bxf4
{[%clk 00:21:41]} {[%emt 00:00:15]} Re2 {[%clk 00:17:26]} {[%emt 00:01:00]} 29.
Qc1 {[%clk 00:21:35]} {[%emt 00:00:07]} Qc5+ {[%clk 00:15:58]} {[%emt
00:01:47]} 30. Kh1 {[%clk 00:21:37]} {[%emt 00:00:05]} Qf2 {[%clk 00:15:41]}
{[%emt 00:00:29]} 31. Rg1 {[%clk 00:21:40]} {[%emt 00:00:06]} d4 {[%clk
00:14:56]} {[%emt 00:00:57]} 32. Bg3 {[%clk 00:19:49]} {[%emt 00:01:57]} Qe3
{[%clk 00:14:48]} {[%emt 00:00:22]} 33. Qxe3 {[%clk 00:17:40]} {[%emt
00:02:18]} dxe3 {[%clk 00:14:35]} {[%emt 00:00:23]} 34. Rge1 {[%clk 00:16:52]}
{[%emt 00:00:54]} Rxb2 {[%clk 00:14:27]} {[%emt 00:00:22]} 35. Rxe3 {[%clk
00:16:50]} {[%emt 00:00:11]} Bd5 {[%clk 00:12:43]} {[%emt 00:01:54]} 36. Bxd6
{[%clk 00:15:29]} {[%emt 00:01:32]} Rc8 {[%clk 00:12:40]} {[%emt 00:00:10]} 37.
Re7 {[%clk 00:13:44]} {[%emt 00:01:54]} a5 {[%clk 00:12:07]} {[%emt 00:00:48]}
38. h3 {[%clk 00:13:09]} {[%emt 00:00:44]} Bxa2 {[%clk 00:11:43]} {[%emt
00:00:33]} 39. Kh2 {[%clk 00:13:02]} {[%emt 00:00:16]} g5 {[%clk 00:10:13]}
{[%emt 00:01:41]} 40. Be5 {[%clk 00:12:19]} {[%emt 00:00:50]} Re2 {[%clk
00:09:27]} {[%emt 00:01:00]} 41. Bf6 {[%clk 00:12:13]} {[%emt 00:00:12]} Rxe7
{[%clk 00:09:17]} {[%emt 00:00:23]} 42. Bxe7 {[%clk 00:12:21]} {[%emt
00:00:02]} Be6 {[%clk 00:09:11]} {[%emt 00:00:15]} 43. Bf6 {[%clk 00:12:22]}
{[%emt 00:00:08]} Kg6 {[%clk 00:09:16]} {[%emt 00:00:07]} 44. Bd4 {[%clk
00:12:30]} {[%emt 00:00:02]} Rb8 {[%clk 00:09:16]} {[%emt 00:00:10]} 45. g4
{[%clk 00:12:11]} {[%emt 00:00:29]} Bb3 {[%clk 00:09:05]} {[%emt 00:00:21]} 46.
Kg2 {[%clk 00:11:52]} {[%emt 00:00:24]} a4 {[%clk 00:09:13]} {[%emt 00:00:07]}
47. Kf2 {[%clk 00:11:56]} {[%emt 00:00:05]} b5 {[%clk 00:09:21]} {[%emt
00:00:02]} 48. Ke3 {[%clk 00:11:59]} {[%emt 00:00:06]} Re8+ {[%clk 00:09:29]}
{[%emt 00:00:03]} 49. Kd2 {[%clk 00:12:00]} {[%emt 00:00:08]} Bc4 {[%clk
00:09:36]} {[%emt 00:00:04]} 50. Be3 {[%clk 00:11:44]} {[%emt 00:00:26]} Rd8+
{[%clk 00:09:43]} {[%emt 00:00:04]} 51. Bd4 {[%clk 00:11:52]} {[%emt 00:00:02]}
f5 {[%clk 00:09:25]} {[%emt 00:00:27]} 52. Re1 {[%clk 00:11:33]} {[%emt
00:00:22]} Rd7 {[%clk 00:09:09]} {[%emt 00:00:34]} 53. Kc2 {[%clk 00:11:18]}
{[%emt 00:00:25]} fxg4 {[%clk 00:08:05]} {[%emt 00:01:14]} 54. fxg4 {[%clk
00:10:26]} {[%emt 00:01:03]} a3 {[%clk 00:07:50]} {[%emt 00:00:25]} 55. Re8
{[%clk 00:09:54]} {[%emt 00:00:40]} a2 {[%clk 00:05:25]} {[%emt 00:02:37]} 56.
Kb2 {[%clk 00:09:21]} {[%emt 00:00:44]} Rb7 {[%clk 00:05:10]} {[%emt 00:00:25]}
57. Re5 {[%clk 00:08:32]} {[%emt 00:00:51]} b4 {[%clk 00:04:46]} {[%emt
00:00:41]} 58. Ra5 {[%clk 00:07:52]} {[%emt 00:00:49]} b3 {[%clk 00:03:58]}
{[%emt 00:00:59]} 59. Ra4 {[%clk 00:07:28]} {[%emt 00:00:34]} Bg8 {[%clk
00:02:31]} {[%emt 00:01:36]} 60. Ra6+ {[%clk 00:06:47]} {[%emt 00:00:48]} Kh7
{[%clk 00:01:52]} {[%emt 00:00:53]} 61. Ra4 {[%clk 00:05:48]} {[%emt 00:01:09]}
Re7 {[%clk 00:01:51]} {[%emt 00:00:09]} 62. c4 {[%clk 00:05:26]} {[%emt
00:00:35]} Rd7 {[%clk 00:01:18]} {[%emt 00:00:42]} 63. Bc3 {[%clk 00:05:23]}
{[%emt 00:00:13]} Rb7 {[%clk 00:00:44]} {[%emt 00:00:45]} 64. c5 {[%clk
00:05:09]} {[%emt 00:00:24]} Rc7 {[%clk 00:00:52]} {[%emt 00:00:02]} 65. c6
{[%clk 00:04:28]} {[%emt 00:00:13]} 1/2-1/2



[ePGN "0.1;DGT LiveChess/2.2.6"]

[Event "MČR družstev mladších žáků 2024"]
[Site "Harrachov, Czech Republic"]
[Date "2024.06.15"]
[Round "7.1"]
[White "Zrust Lukas"]
[Black "Velim Vojtech"]
[Result "1/2-1/2"]
[TimeControl "25+10"]
[WhiteFideId "23736666"]
[BlackFideId "23749407"]
[WhiteElo "1742"]
[BlackElo "1814"]

1. d4 {[%clk 00:25:13]} {[%emt 00:00:06]} d5 {[%clk 00:25:16]} {[%emt
00:00:04]} 2. Nf3 {[%clk 00:25:22]} {[%emt 00:00:01]} Nf6 {[%clk 00:25:25]}
{[%emt 00:00:01]} 3. g3 {[%clk 00:25:31]} {[%emt 00:00:01]} e6 {[%clk
00:25:29]} {[%emt 00:00:06]} 4. Bg2 {[%clk 00:25:39]} {[%emt 00:00:01]} Be7
{[%clk 00:25:36]} {[%emt 00:00:03]} 5. O-O {[%clk 00:25:48]} {[%emt 00:00:02]}
O-O {[%clk 00:25:44]} {[%emt 00:00:01]} 6. b3 {[%clk 00:25:57]} {[%emt
00:00:02]} b6 {[%clk 00:25:51]} {[%emt 00:00:03]} 7. Bb2 {[%clk 00:26:05]}
{[%emt 00:00:01]} Bb7 {[%clk 00:26:00]} 8. Nbd2 {[%clk 00:26:14]} Nbd7 {[%clk
00:26:08]} {[%emt 00:00:02]} 9. Rc1 {[%clk 00:25:58]} {[%emt 00:00:26]} c5
{[%clk 00:26:11]} {[%emt 00:00:07]} 10. e3 {[%clk 00:26:07]} {[%emt 00:00:01]}
Rc8 {[%clk 00:26:20]} {[%emt 00:00:01]} 11. c4 {[%clk 00:25:53]} {[%emt
00:00:24]} cxd4 {[%clk 00:26:07]} {[%emt 00:00:23]} 12. exd4 {[%clk 00:24:59]}
{[%emt 00:01:04]} dxc4 {[%clk 00:26:12]} {[%emt 00:00:04]} 13. Nxc4 {[%clk
00:24:26]} {[%emt 00:00:43]} Nd5 {[%clk 00:26:13]} {[%emt 00:00:09]} 14. Re1
{[%clk 00:23:22]} {[%emt 00:01:12]} N7f6 {[%clk 00:25:52]} {[%emt 00:00:33]} 15.
Nfe5 {[%clk 00:21:26]} {[%emt 00:02:05]} Bb4 {[%clk 00:25:21]} {[%emt
00:00:42]} 16. Re2 {[%clk 00:20:51]} {[%emt 00:00:43]} Qe7 {[%clk 00:22:44]}
{[%emt 00:02:49]} 17. a3 {[%clk 00:20:03]} {[%emt 00:00:58]} Bd6 {[%clk
00:22:51]} {[%emt 00:00:03]} 18. Nxd6 {[%clk 00:20:04]} {[%emt 00:00:09]} Qxd6
{[%clk 00:22:59]} {[%emt 00:00:02]} 19. Rec2 {[%clk 00:19:11]} {[%emt
00:01:03]} Rxc2 {[%clk 00:22:56]} {[%emt 00:00:13]} 20. Rxc2 {[%clk 00:18:49]}
{[%emt 00:00:31]} Nd7 {[%clk 00:21:23]} {[%emt 00:01:44]} 21. Qc1 {[%clk
00:17:51]} {[%emt 00:01:09]} Nxe5 {[%clk 00:20:28]} {[%emt 00:01:06]} 22. dxe5
{[%clk 00:17:57]} {[%emt 00:00:03]} Qd7 {[%clk 00:20:36]} {[%emt 00:00:01]} 23.
h4 {[%clk 00:15:21]} {[%emt 00:02:46]} Rd8 {[%clk 00:19:17]} {[%emt 00:01:30]}
24. Qg5 {[%clk 00:13:57]} {[%emt 00:01:31]} h6 {[%clk 00:17:59]} {[%emt
00:01:31]} 25. Qg4 {[%clk 00:11:50]} {[%emt 00:02:16]} Qb5 {[%clk 00:14:14]}
{[%emt 00:03:56]} 26. Qc4 {[%clk 00:11:11]} {[%emt 00:00:47]} Qd7 {[%clk
00:14:08]} {[%emt 00:00:18]} 27. Qe2 {[%clk 00:10:36]} {[%emt 00:00:44]} Rc8
{[%clk 00:12:05]} {[%emt 00:02:14]} 28. Rc4 {[%clk 00:07:25]} {[%emt 00:03:20]}
Ba6 {[%clk 00:09:52]} {[%emt 00:02:23]} 29. Rxc8+ {[%clk 00:07:34]} {[%emt
00:00:02]} Qxc8 {[%clk 00:09:58]} {[%emt 00:00:04]} 30. Qd2 {[%emt 00:00:34]}
1/2-1/2



[ePGN "0.1;DGT LiveChess/2.2.6"]